bitfinex-derivatives/quotes_SOLF0:USTF0_20260207
["timestamp","ask_amount","ask_price","bid_price","bid_amount"]
[1770437162467,158.46,88.444,88.324,57.5019984]
[1770437162468,61.06122047,88.415,88.324,57.5019984]
[1770437163175,61.06122047,88.415,88.347,57.5019984]
[1770437163680,61.06122047,88.413,88.347,57.5019984]
[1770437166375,62.39193923,88.432,88.351,60.85737598]
[1770437166770,158.46,88.444,88.381,10.19]
[1770437166980,158.46,88.444,88.38,60.85737598]
[1770437167170,62.39193923,88.45,88.38,60.85737598]
[1770437167377,62.39193923,88.45,88.38,71.04757598]
[1770437167769,62.39193923,88.45,88.38,60.85737598]
[1770437167969,62.39193923,88.445,88.38,60.85737598]
[1770437168773,62.12108678,88.44,88.38,60.85737598]
[1770437169376,62.12108678,88.435,88.357,61.53235783]
[1770437169982,20.3553,88.49,88.357,61.53235783]
[1770437169983,72.30528678,88.432,88.357,61.53235783]
[1770437170181,62.12108678,88.469,88.363,61.53235783]
[1770437170882,10.1817,88.454,88.384,61.53235783]
[1770437171082,62.12108678,88.469,88.384,61.53235783]
[1770437171283,158.2514,88.528,88.366,61.53235783]
[1770437171284,72.30668678,88.42,88.366,61.53235783]
[1770437172084,62.12108678,88.42,88.366,61.53235783]
[1770437173080,62.12108678,88.42,88.291,20.4009]
[1770437173081,62.12108678,88.442,88.368,61.53235783]
[1770437173485,62.12108678,88.469,88.368,61.53235783]
[1770437174080,62.12108678,88.469,88.332,34.07]
[1770437174081,10.1819,88.453,88.389,71.72145783]
[1770437174278,72.30298678,88.453,88.389,61.53235783]
[1770437175288,62.12108678,88.453,88.391,61.53235783]
[1770437176087,62.12108678,88.453,88.394,10.1886]
[1770437176291,72.30318678,88.451,88.391,61.53235783]
[1770437177192,62.12108678,88.441,88.372,61.53235783]
[1770437177587,10.1835,88.439,88.372,71.72335783]
[1770437177788,62.12108678,88.439,88.372,61.53235783]
[1770437178793,10.1857,88.419,88.372,61.53235783]
[1770437178990,62.12108678,88.418,88.331,61.53235783]
[1770437179487,62.12108678,88.41,88.331,71.72805783]
[1770437179690,62.12108678,88.41,88.331,61.53235783]
[1770437180001,62.12108678,88.406,88.331,61.53235783]
[1770437180300,62.12108678,88.406,88.307,61.53235783]
[1770437180494,62.12108678,88.406,88.249,34.07]
[1770437180495,62.12108678,88.402,88.289,61.53235783]
[1770437180883,10.43715358,88.425,88.304,10.1989]
[1770437180884,62.12108678,88.396,88.304,10.1989]
[1770437181089,62.12108678,88.396,88.289,61.53235783]
[1770437181284,62.12108678,88.396,88.269,61.53235783]
[1770437181597,34.07,88.449,88.269,61.53235783]
[1770437181598,62.12108678,88.368,88.269,61.53235783]
[1770437182699,62.12108678,88.355,88.269,61.53235783]
[1770437182990,62.12108678,88.355,88.2,61.53235783]
[1770437184201,62.12108678,88.34,88.244,61.53235783]
[1770437184788,62.12108678,88.34,88.253,61.53235783]
[1770437185095,62.12108678,88.383,88.253,61.53235783]
[1770437185292,62.12108678,88.381,88.296,61.53235783]
[1770437186786,62.12108678,88.381,88.309,61.53235783]
[1770437187902,62.12108678,88.381,88.233,61.53235783]
[1770437188396,62.12108678,88.366,88.269,61.53235783]
[1770437189389,62.12108678,88.349,88.269,61.53235783]
[1770437189994,62.12108678,88.347,88.269,61.53235783]
[1770437190597,62.12108678,88.34,88.247,61.53235783]
[1770437191199,62.12108678,88.332,88.247,71.73785783]
[1770437191399,62.12108678,88.332,88.247,61.53235783]
[1770437192002,62.12108678,88.332,88.258,61.53235783]
[1770437192598,62.12108678,88.332,88.194,20.4233]
[1770437192599,62.12108678,88.328,88.196,61.53235783]
[1770437193797,72.32258678,88.283,88.207,61.53235783]
[1770437194798,62.12108678,88.27,88.185,61.53235783]
[1770437196009,20.397,88.309,88.16,58.22935767]
[1770437196010,60.09164828,88.236,88.16,58.22935767]
[1770437196210,60.09164828,88.236,88.137,58.22935767]
[1770437196398,60.09164828,88.222,88.137,58.22935767]
[1770437196601,60.09164828,88.222,88.072,58.22935767]
[1770437197109,60.09164828,88.222,88.1,58.22935767]
[1770437198005,60.09164828,88.181,88.1,58.22935767]
[1770437199210,60.09164828,88.181,88.103,58.22935767]
[1770437200205,60.09164828,88.179,88.046,58.22935767]
[1770437201007,60.09164828,88.161,88.076,58.22935767]
[1770437201403,60.09164828,88.161,87.972,159.2484]
[1770437201404,60.09164828,88.159,88.043,58.22935767]
[1770437202108,60.09164828,88.125,88.043,58.22935767]
[1770437203412,70.31134828,88.125,88.043,68.45845767]
[1770437204410,60.09164828,88.138,88.043,58.22935767]
[1770437205316,70.31274828,88.113,88.043,58.22935767]
[1770437206017,60.09164828,88.113,88.043,58.22935767]
[1770437206709,158.78,88.172,87.985,1.97631264]
[1770437206710,60.09164828,88.138,88.046,58.22935767]
[1770437207411,60.09164828,88.134,88.048,58.22935767]
[1770437207809,60.09164828,88.153,88.048,58.22935767]
[1770437208315,158.78,88.172,88.079,58.22935767]
[1770437208712,10.2143,88.172,88.101,58.22935767]
[1770437209211,60.09164828,88.171,88.101,58.22935767]
[1770437209806,60.09164828,88.171,88.082,58.22935767]
[1770437211209,60.09164828,88.168,88.083,10.2245]
[1770437211618,60.09164828,88.166,88.082,58.22935767]
[1770437212115,60.09164828,88.159,88.082,58.22935767]
[1770437213718,60.09164828,88.157,88.082,58.22935767]
[1770437214620,60.09164828,88.154,88.082,58.22935767]
[1770437216224,60.09164828,88.154,88.085,58.22935767]
[1770437216720,60.09164828,88.154,88.098,10.2227]
[1770437216920,60.09164828,88.194,88.099,58.22935767]
[1770437217715,158.9,88.211,88.127,58.22935767]
[1770437217917,158.9,88.286,88.127,58.22935767]
[1770437218127,60.09164828,88.229,88.127,58.22935767]
[1770437218329,60.09164828,88.229,88.113,34.07]
[1770437218330,60.09164828,88.229,88.158,58.22935767]
[1770437219027,60.09164828,88.229,88.163,58.22935767]
[1770437219723,60.09164828,88.229,88.105,34.07]
[1770437219724,60.09164828,88.229,88.165,58.22935767]
[1770437220323,60.09164828,88.229,88.114,34.07]
[1770437220324,60.09164828,88.229,88.115,58.22935767]
[1770437221422,60.09164828,88.201,88.12,58.22935767]
[1770437222135,60.09164828,88.186,88.093,58.22935767]
[1770437222719,60.09164828,88.165,88.093,58.22935767]
[1770437222928,60.09164828,88.237,88.093,58.22935767]
[1770437223427,60.09164828,88.187,88.107,58.22935767]
[1770437225931,60.09164828,88.187,88.112,10.2211]
[1770437226520,60.09164828,88.187,88.112,70.07546]
[1770437227432,60.09164828,88.187,88.112,59.85436]
[1770437229233,62.75476266,88.237,88.154,63.85581449]
[1770437230725,62.75476266,88.225,88.154,63.85581449]
[1770437231734,62.75476266,88.222,88.154,63.85581449]
[1770437232434,62.75476266,88.222,88.157,63.85581449]
[1770437232628,158.88,88.247,88.157,63.85581449]
[1770437232629,62.75476266,88.246,88.157,63.85581449]
[1770437232830,62.75476266,88.24,88.159,63.85581449]
[1770437233434,62.75476266,88.234,88.159,63.85581449]
[1770437234028,62.75476266,88.23,88.159,63.85581449]
[1770437234637,62.75476266,88.23,88.161,63.85581449]
[1770437235735,10.2077,88.229,88.163,63.85581449]
[1770437236932,10.2038,88.263,88.163,63.85581449]
[1770437237140,72.95856266,88.263,88.163,63.85581449]
[1770437237332,72.95856266,88.263,88.193,63.85581449]
[1770437238534,10.2049,88.253,88.193,63.85581449]
[1770437238736,62.75476266,88.285,88.193,63.85581449]
[1770437239738,10.2036,88.264,88.196,63.85581449]
[1770437239938,62.75476266,88.264,88.196,63.85581449]
[1770437241331,62.75476266,88.264,88.129,20.4384]
[1770437241544,62.75476266,88.264,88.176,63.85581449]
[1770437242043,10.2076,88.229,88.176,63.85581449]
[1770437243245,72.96236266,88.229,88.176,63.85581449]
[1770437243450,10.209,88.218,88.158,63.85581449]
[1770437245437,62.75476266,88.218,88.158,63.85581449]
[1770437246749,10.2093,88.215,88.158,63.85581449]
[1770437246948,72.96406266,88.215,88.158,63.85581449]
[1770437248437,10.2103,88.206,88.158,63.85581449]
[1770437249043,62.75476266,88.215,88.158,63.85581449]
[1770437249642,62.75476266,88.28,88.158,63.85581449]
[1770437249844,62.75476266,88.28,88.07,159.0723]
[1770437249845,62.75476266,88.28,88.159,63.85581449]
[1770437250152,62.75476266,88.237,88.159,63.85581449]
[1770437250646,62.75476266,88.228,88.159,63.85581449]
[1770437251651,62.75476266,88.221,88.159,63.85581449]
[1770437252750,62.75476266,88.215,88.159,63.85581449]
[1770437253848,72.96466266,88.21,88.131,63.85581449]
[1770437254642,62.75476266,88.2,88.131,63.85581449]
[1770437255557,72.96926266,88.17,88.111,63.85581449]
[1770437255848,62.75476266,88.17,88.111,63.85581449]
[1770437256149,10.2148,88.168,88.111,63.85581449]
[1770437256546,68.63437937,88.168,88.111,63.85581449]
[1770437260049,10.2164,88.154,88.111,63.85581449]
[1770437260558,10.2175,88.144,88.094,59.44091521]
[1770437260755,58.41957937,88.144,88.075,59.44091521]
[1770437261350,58.41957937,88.161,88.078,59.44091521]
[1770437261958,58.41957937,88.159,88.083,59.44091521]
[1770437262650,58.41957937,88.147,88.083,59.44091521]
[1770437263549,1.97509003,88.178,88.107,59.44091521]
[1770437263750,68.63197937,88.188,88.107,59.44091521]
[1770437263955,70.60723195,88.188,88.107,59.44091521]
[1770437264562,58.41957937,88.188,88.123,59.44091521]
[1770437265162,158.86,88.203,88.123,59.44091521]
[1770437265359,158.86,88.203,88.087,34.07]
[1770437265360,158.86,88.203,88.145,10.2173]
[1770437266250,158.86,88.203,88.141,59.44091521]
[1770437266655,10.2104,88.206,88.141,59.44091521]
[1770437267959,68.62997937,88.206,88.141,59.44091521]
[1770437268460,158.88,88.258,88.088,34.07]
[1770437268461,158.88,88.258,88.187,59.44091521]
[1770437268663,58.41957937,88.275,88.187,59.44091521]
[1770437269059,58.41957937,88.275,88.202,10.2107]
[1770437269360,58.41957937,88.275,88.203,59.44091521]
[1770437270357,58.41957937,88.275,88.158,34.07]
[1770437270565,58.41957937,88.275,88.159,59.44091521]
[1770437271660,58.41957937,88.249,88.159,59.44091521]
[1770437271866,58.41957937,88.249,88.168,59.44091521]
[1770437272660,1.97343798,88.25,88.168,59.44091521]
[1770437272661,58.41957937,88.247,88.168,59.44091521]
[1770437273867,58.41957937,88.245,88.169,10.2146]
[1770437275364,58.41957937,88.245,88.182,10.213]
[1770437275870,8.82045771,88.24,88.182,10.213]
[1770437276365,67.24003708,88.24,88.182,10.213]
[1770437276566,67.24003708,88.24,88.169,59.44091521]
[1770437276961,8.82045771,88.22,88.169,59.44091521]
[1770437277671,67.24003708,88.22,88.151,59.44091521]
[1770437279973,67.24003708,88.22,88.16,59.44091521]
[1770437280165,67.24003708,88.25,88.16,59.44091521]
[1770437281071,8.82045771,88.27,88.192,59.44091521]
[1770437281269,67.24003708,88.27,88.192,59.44091521]
[1770437281670,67.24003708,88.27,88.202,59.44091521]
[1770437282270,8.82045771,88.25,88.202,59.44091521]
[1770437284276,8.82045771,88.25,88.113,27.43780501]
[1770437284277,58.41957937,88.247,88.182,59.44091521]
[1770437284671,58.41957937,88.245,88.182,59.44091521]
[1770437284872,8.82045771,88.23,88.182,59.44091521]
[1770437285378,67.24003708,88.23,88.165,59.44091521]
[1770437285574,58.66265049,88.209,88.144,58.29894412]
[1770437285768,58.66265049,88.209,88.156,68.51494412]
[1770437286481,8.82045771,88.22,88.156,68.51494412]
[1770437286482,8.82045771,88.22,88.165,10.215]
[1770437286775,8.82045771,88.22,88.165,68.51394412]
[1770437293578,72.07540253,88.22,88.165,68.51394412]
[1770437296684,72.07540253,88.18,88.092,20.447]
[1770437296888,72.07540253,88.18,88.093,59.58016917]
[1770437297088,72.07540253,88.18,88.119,10.2204]
[1770437297282,72.07540253,88.18,88.115,59.58016917]
[1770437297683,72.07540253,88.18,88.118,59.58016917]
[1770437297886,8.82045771,88.16,88.118,59.58016917]
[1770437299791,72.07540253,88.18,88.118,59.58016917]
[1770437300794,72.07540253,88.18,88.134,10.2186]
[1770437302787,72.07540253,88.18,88.143,10.2175]
[1770437303090,72.07540253,88.18,88.118,59.58016917]
[1770437303692,72.07540253,88.18,88.133,10.2187]
[1770437304688,72.07540253,88.18,88.124,10.2198]
[1770437305188,63.25494482,88.178,88.124,10.2198]
[1770437309090,13.97134574,88.232,88.064,20.4534]
[1770437309091,8.82045771,88.16,88.113,10.221]
[1770437309495,63.25494482,88.156,88.093,10.2234]
[1770437309795,63.25494482,88.156,88.085,59.58016917]
[1770437309796,8.82045771,88.14,88.085,59.58016917]
[1770437310184,8.82045771,88.14,88.103,10.2221]
[1770437310390,8.82045771,88.14,88.085,59.58016917]
[1770437310793,8.82045771,88.14,88.101,10.2224]
[1770437310985,8.82045771,88.14,88.085,59.58016917]
[1770437310986,72.07540253,88.14,88.085,59.58016917]
[1770437311690,72.07540253,88.14,88.086,10.2241]
[1770437314098,82.29340253,88.14,88.085,59.58016917]
[1770437314398,63.25494482,88.139,88.085,59.58016917]
[1770437314889,63.25494482,88.139,88.086,10.2242]
[1770437316897,63.25494482,88.139,88.076,10.2253]
[1770437318199,63.99323603,88.137,88.076,10.2253]
[1770437318399,63.99323603,88.137,88.083,10.2245]
[1770437318799,63.99323603,88.119,88.021,62.51293006]
[1770437318996,63.99323603,88.134,88.064,62.51293006]
[1770437320195,63.99323603,88.134,88.086,10.2241]
[1770437320597,63.99323603,88.134,88.086,72.73703006]
[1770437321196,63.99323603,88.134,88.096,10.223]
[1770437321397,63.99323603,88.134,88.086,62.51293006]
[1770437321702,63.99323603,88.171,88.096,62.51293006]
[1770437322401,63.99323603,88.171,88.118,10.2204]
[1770437322993,63.99323603,88.171,88.096,62.51293006]
[1770437322994,8.82045771,88.16,88.096,62.51293006]
[1770437323199,63.99323603,88.159,88.096,62.51293006]
[1770437324195,63.99323603,88.139,88.09,10.2237]
[1770437324399,63.99323603,88.139,88.081,62.51293006]
[1770437324903,63.99323603,88.139,88.09,10.2237]
[1770437325399,63.99323603,88.119,88.049,62.51293006]
[1770437326099,63.99323603,88.135,88.078,10.2251]
[1770437326399,63.99323603,88.135,88.012,20.4656]
[1770437326400,63.99323603,88.119,88.055,62.51293006]
[1770437327102,63.99323603,88.119,88.063,72.73973006]
[1770437327304,63.99323603,88.119,88.063,62.51293006]
[1770437327598,63.99323603,88.136,88.072,62.51293006]
[1770437328895,63.99323603,88.136,88.078,10.2251]
[1770437329292,63.99323603,88.136,88.078,62.51293006]
[1770437330105,63.99323603,88.136,88.097,10.2228]
[1770437331099,8.84326184,88.14,88.097,10.2228]
[1770437331300,63.99323603,88.22,88.1,62.51293006]
[1770437331508,72.83649787,88.22,88.111,62.51293006]
[1770437331799,63.99323603,88.199,88.123,62.51293006]
[1770437332001,8.84326184,88.18,88.123,62.51293006]
[1770437333101,8.84326184,88.16,88.105,62.51293006]
[1770437333606,8.84326184,88.16,88.107,62.51293006]
[1770437334500,63.99323603,88.182,88.111,62.51293006]
[1770437334694,63.99323603,88.199,88.111,62.51293006]
[1770437334900,8.84326184,88.22,88.125,62.51293006]
[1770437335195,63.99323603,88.232,88.172,72.72713006]
[1770437336796,8.84326184,88.26,88.185,62.51293006]
[1770437337011,72.83649787,88.26,88.185,62.51293006]
[1770437337503,72.83649787,88.26,88.196,72.72433006]
[1770437337909,72.83649787,88.26,88.141,62.51293006]
[1770437338602,8.84326184,88.24,88.171,62.51293006]
[1770437339702,8.84326184,88.24,88.181,10.2131]
[1770437339903,8.84326184,88.24,88.181,62.51293006]
[1770437340102,72.83649787,88.24,88.181,62.51293006]
[1770437340303,72.83649787,88.24,88.181,72.72613006]
[1770437340507,72.83649787,88.24,88.181,62.51293006]
[1770437340908,63.99323603,88.256,88.203,10.2106]
[1770437341306,63.99323603,88.256,88.204,62.51293006]
[1770437341510,63.99323603,88.275,88.204,62.51293006]
[1770437341810,8.84326184,88.27,88.204,62.51293006]
[1770437342310,72.83649787,88.25,88.186,62.51293006]
[1770437344210,72.83649787,88.25,88.186,72.72543006]
[1770437346611,72.83649787,88.25,88.129,20.4384]
[1770437346612,63.99323603,88.25,88.196,61.86477368]
[1770437346815,58.82077966,88.269,88.196,61.86477368]
[1770437347317,58.82077966,88.269,88.216,72.07387368]
[1770437349014,58.82077966,88.269,88.216,10.2091]
[1770437349317,58.82077966,88.269,88.205,10.2104]
[1770437349711,63.99055594,88.249,88.199,63.96034366]
[1770437350207,63.99055594,88.249,88.2,74.17124366]
[1770437352411,63.99055594,88.249,88.19,10.2121]
[1770437353009,63.99055594,88.249,88.19,74.17244366]
[1770437353208,8.84326184,88.25,88.201,63.96034366]
[1770437353609,72.83381778,88.25,88.201,63.96034366]
[1770437354411,72.83381778,88.25,88.151,63.96034366]
[1770437354821,72.83381778,88.25,88.185,63.96034366]
[1770437355721,72.83381778,88.25,88.191,10.212]
[1770437356219,63.99055594,88.229,88.17,74.17474366]
[1770437356422,63.99055594,88.229,88.17,63.96034366]
[1770437357718,63.99055594,88.229,88.179,10.2134]
[1770437359415,63.99055594,88.229,88.17,74.17474366]
[1770437362422,10.2061,88.243,88.181,63.96034366]
[1770437362618,63.99055594,88.244,88.181,63.96034366]
[1770437363427,74.19655594,88.244,88.183,10.2129]
[1770437363924,72.83381778,88.23,88.181,63.96034366]
[1770437364224,72.83381778,88.23,88.165,63.96034366]
[1770437366716,72.83381778,88.23,88.172,10.2142]
[1770437367221,63.99055594,88.209,88.152,10.2165]
[1770437367823,63.99055594,88.204,88.148,63.96034366]
[1770437368020,63.99055594,88.204,88.149,10.2168]
[1770437370520,63.99055594,88.204,88.149,74.17714366]
[1770437370728,63.99055594,88.204,88.149,63.96034366]
[1770437371023,63.99055594,88.219,88.149,63.96034366]
[1770437371330,63.99055594,88.219,88.174,10.2139]
[1770437372332,63.99055594,88.219,88.182,10.213]
[1770437374232,63.99055594,88.209,88.157,63.96034366]
[1770437376842,63.99055594,88.209,88.157,74.17624366]
[1770437377045,63.99055594,88.209,88.103,34.04]
[1770437377241,63.99055594,88.209,88.113,34.04]
[1770437377446,63.99055594,88.209,88.116,59.17466154]
[1770437377743,63.99055594,88.209,88.115,34.04]
[1770437377744,10.47544184,88.236,88.142,59.17466154]
[1770437377937,8.64845953,88.272,88.061,159.0886]
[1770437377938,63.4169129,88.245,88.151,59.17466154]
[1770437378134,63.4169129,88.245,88.156,59.17466154]
[1770437378338,63.4169129,88.245,88.193,10.2117]
[1770437378539,8.84326184,88.25,88.193,59.17466154]
[1770437378939,72.26017474,88.25,88.193,59.17466154]
[1770437379350,63.4169129,88.268,88.193,59.17466154]
[1770437379743,8.84326184,88.28,88.228,10.2076]
[1770437380134,63.4169129,88.268,88.216,69.38376154]
[1770437380341,63.4169129,88.268,88.194,34.04]
[1770437380342,63.4169129,88.259,88.198,59.17466154]
[1770437381836,63.4169129,88.259,88.203,59.17466154]
[1770437383845,63.4169129,88.259,88.205,10.2104]
[1770437385550,8.84326184,88.26,88.21,59.17466154]
[1770437385751,63.4169129,88.277,88.21,59.17466154]
[1770437386748,63.4169129,88.277,88.22,10.2086]
[1770437387752,63.4169129,88.277,88.22,69.38326154]
[1770437388846,63.4169129,88.277,88.229,10.2075]
[1770437389852,63.4169129,88.292,88.22,59.17466154]
[1770437390755,63.4169129,88.292,88.248,10.2054]
[1770437390950,63.4169129,88.307,88.249,59.17466154]
[1770437392053,63.4169129,88.325,88.266,59.17466154]
[1770437393258,63.4169129,88.325,88.206,34.04]
[1770437393259,63.4169129,88.309,88.248,59.17466154]
[1770437393949,63.4169129,88.309,88.261,10.2039]
[1770437394152,63.4169129,88.309,88.248,59.17466154]
[1770437394751,8.81196102,88.31,88.23,59.17466154]
[1770437394752,63.4169129,88.289,88.23,59.17466154]
[1770437395961,63.4169129,88.289,88.239,10.2064]
[1770437398260,8.81196102,88.31,88.224,10.2081]
[1770437398261,8.81196102,88.27,88.224,10.2081]
[1770437398654,8.81196102,88.27,88.214,59.17466154]
[1770437399565,63.4169129,88.286,88.232,10.2072]
[1770437400061,63.4169129,88.286,88.243,10.206]
[1770437400264,8.81196102,88.31,88.228,59.17466154]
[1770437400454,63.4169129,88.318,88.233,59.17466154]
[1770437401066,63.4169129,88.318,88.254,59.17466154]
[1770437401860,63.4169129,88.337,88.262,59.17466154]
[1770437402052,63.4169129,88.337,88.262,34.04]
[1770437402258,8.81196102,88.35,88.295,59.17466154]
[1770437402459,63.4169129,88.353,88.295,59.17466154]
[1770437402661,63.4169129,88.366,88.295,59.17466154]
[1770437402858,63.4169129,88.366,88.306,10.1987]
[1770437403255,72.22887392,88.33,88.251,59.17466154]
[1770437404067,72.22887392,88.33,88.272,10.2026]
[1770437404660,1.97071673,88.38,88.283,59.17466154]
[1770437404661,73.6109129,88.348,88.283,59.17466154]
[1770437406464,63.4169129,88.348,88.289,61.55899103]
[1770437406768,61.4422334,88.359,88.289,61.55899103]
[1770437407564,10.78267775,88.38,88.289,61.55899103]
[1770437407565,61.4422334,88.339,88.289,61.55899103]
[1770437407769,61.4422334,88.339,88.272,61.55899103]
[1770437408276,58.96271257,88.369,88.285,61.55899103]
[1770437408860,58.96271257,88.369,88.309,71.6977731]
[1770437409463,8.81196102,88.37,88.32,61.4994731]
[1770437409662,58.96271257,88.386,88.32,61.4994731]
[1770437409870,8.81196102,88.38,88.32,61.4994731]
[1770437410263,58.96271257,88.398,88.323,61.4994731]
[1770437410463,67.77467359,88.38,88.323,61.4994731]
[1770437411658,67.77467359,88.38,88.306,61.4994731]
[1770437412466,8.81196102,88.36,88.306,71.6981731]
[1770437412666,67.77467359,88.36,88.289,61.4994731]
[1770437413172,8.81196102,88.34,88.289,61.4994731]
[1770437414058,58.96271257,88.355,88.292,61.4994731]
[1770437414569,58.96271257,88.373,88.292,61.4994731]
[1770437414767,8.81196102,88.36,88.296,10.1998]
[1770437414967,67.77467359,88.36,88.296,10.1998]
[1770437415160,67.77467359,88.36,88.292,61.4994731]
[1770437415574,67.77467359,88.36,88.306,10.1987]
[1770437415871,67.77467359,88.36,88.292,61.4994731]
[1770437416668,58.96271257,88.359,88.292,61.4994731]
[1770437416873,8.81196102,88.34,88.292,61.4994731]
[1770437418779,8.81196102,88.38,88.247,61.4994731]
[1770437418780,58.96271257,88.319,88.247,61.4994731]
[1770437420580,58.96271257,88.319,88.262,10.2038]
[1770437420964,67.77467359,88.3,88.247,61.4994731]
[1770437421375,67.77467359,88.3,88.24,10.2063]
[1770437421767,58.96271257,88.295,88.23,61.4994731]
[1770437422269,58.96271257,88.295,88.242,10.2061]
[1770437422670,58.96271257,88.295,88.23,61.4994731]
[1770437423069,58.96271257,88.295,88.253,10.2049]
[1770437423473,58.96271257,88.314,88.263,10.2036]
[1770437423668,67.77467359,88.31,88.263,10.2036]
[1770437424965,58.96271257,88.289,88.207,61.4994731]
[1770437425170,20.3824,88.372,88.207,61.4994731]
[1770437425171,8.81196102,88.3,88.207,61.4994731]
[1770437425368,58.96271257,88.306,88.221,61.4994731]
[1770437425571,58.96271257,88.329,88.221,61.4994731]
[1770437425769,58.96271257,88.329,88.254,61.4994731]
[1770437425969,8.81196102,88.31,88.254,61.4994731]
[1770437426174,67.77467359,88.31,88.254,61.4994731]
[1770437427779,67.77467359,88.31,88.255,10.2045]
[1770437428480,67.77467359,88.31,88.265,10.2034]
[1770437429575,67.77467359,88.31,88.151,35.25003265]
[1770437429576,58.96271257,88.289,88.234,61.4994731]
[1770437430374,58.96271257,88.305,88.252,10.205]
[1770437430674,13.97134574,88.372,88.2,8.81196102]
[1770437430675,58.96271257,88.321,88.253,61.4994731]
[1770437430973,67.77467359,88.33,88.253,61.4994731]
[1770437431183,8.81196102,88.29,88.221,61.4994731]
[1770437431568,67.77467359,88.29,88.221,61.4994731]
[1770437432673,58.96271257,88.288,88.223,10.2083]
[1770437433076,58.96271257,88.288,88.233,10.2071]
[1770437435174,58.96271257,88.269,88.222,10.2084]
[1770437435578,58.96271257,88.269,88.204,61.4994731]
[1770437436179,62.81843991,88.249,88.185,64.7983101]
[1770437436585,8.81196102,88.25,88.168,64.7983101]
[1770437436586,8.81196102,88.23,88.168,64.7983101]
[1770437437179,8.81196102,88.21,88.15,64.7983101]
[1770437437380,62.81843991,88.209,88.132,64.7983101]
[1770437437779,62.81843991,88.209,88.15,64.7983101]
[1770437438285,62.81843991,88.209,88.157,10.2159]
[1770437439484,8.81196102,88.19,88.132,64.7983101]
[1770437440283,8.81196102,88.19,88.145,10.2173]
[1770437440486,62.81843991,88.209,88.145,75.0156101]
[1770437440687,62.81843991,88.209,88.145,64.7983101]
[1770437441084,62.81843991,88.311,88.17,64.7983101]
[1770437441292,62.81843991,88.311,88.14,8.81196102]
[1770437441293,8.81196102,88.31,88.21,8.81196102]
[1770437441492,8.81196102,88.31,88.211,64.7983101]
[1770437441785,62.81843991,88.309,88.242,64.7983101]
[1770437442393,8.81196102,88.29,88.242,64.7983101]
[1770437442588,62.81843991,88.309,88.222,64.7983101]
[1770437442794,8.81196102,88.28,88.222,64.7983101]
[1770437442994,71.63040093,88.28,88.222,64.7983101]
[1770437443989,8.81196102,88.31,88.222,64.7983101]
[1770437444192,71.63040093,88.31,88.222,64.7983101]
[1770437445791,71.63040093,88.31,88.227,64.7983101]
[1770437445987,8.81196102,88.29,88.227,64.7983101]
[1770437446691,8.81196102,88.29,88.23,10.2075]
[1770437446887,8.81196102,88.29,88.23,75.0058101]
[1770437447493,71.63040093,88.31,88.245,64.7983101]
[1770437448203,71.63040093,88.31,88.251,10.2051]
[1770437448802,71.63040093,88.31,88.251,75.0034101]
[1770437451001,71.63040093,88.31,88.264,10.2035]
[1770437451396,62.81843991,88.31,88.264,10.2035]
[1770437452703,8.80358745,88.32,88.275,10.2023]
[1770437453603,8.80358745,88.32,88.263,10.2037]
[1770437453807,8.80358745,88.32,88.251,64.7983101]
[1770437454805,8.80358745,88.32,88.273,10.2025]
[1770437459005,62.81843991,88.319,88.273,10.2025]
[1770437462211,62.81843991,88.319,88.251,64.7983101]
[1770437462212,62.81843991,88.316,88.263,10.2036]
[1770437463710,8.80358745,88.3,88.254,10.2046]
[1770437464009,71.62202736,88.3,88.254,10.2046]
[1770437467809,62.21740693,88.357,88.264,65.2796469]
[1770437468015,62.21740693,88.329,88.264,65.2796469]
[1770437468623,60.45076814,88.309,88.264,65.2796469]
[1770437469423,60.45076814,88.328,88.264,65.2796469]
[1770437469819,60.45076814,88.364,88.264,65.2796469]
[1770437470011,60.45076814,88.339,88.277,59.19206497]
[1770437470216,167.44358745,88.38,88.277,59.19206497]
[1770437470217,8.80358745,88.32,88.277,59.19206497]
[1770437470821,69.25435559,88.32,88.251,59.19206497]
[1770437471223,60.45076814,88.379,88.297,59.19206497]
[1770437471419,13.97134574,88.411,88.297,59.19206497]
[1770437471420,60.45076814,88.369,88.297,59.19206497]
[1770437471619,8.80358745,88.35,88.297,59.19206497]
[1770437471820,10.48187581,88.431,88.297,59.19206497]
[1770437471821,60.45076814,88.368,88.297,59.19206497]
[1770437472126,8.80358745,88.35,88.297,59.19206497]
[1770437472420,8.80358745,88.35,88.202,158.833]
[1770437472421,60.45076814,88.389,88.301,59.19206497]
[1770437472826,60.45076814,88.389,88.34,10.1947]
[1770437473223,60.45076814,88.389,88.334,59.19206497]
[1770437473624,60.45076814,88.389,88.339,10.1949]
[1770437474324,60.45076814,88.399,88.339,69.38696497]
[1770437475127,69.25435559,88.39,88.325,10.1965]
[1770437475432,60.45076814,88.409,88.325,59.19206497]
[1770437475932,60.45076814,88.409,88.34,59.19206497]